bitfinex-derivatives/quotes_BNBF0:USTF0_20250710
["timestamp","ask_amount","ask_price","bid_price","bid_amount"]
[1752109929504,2.22986626,669.57,668.89,1.36]
[1752109932708,2.22986626,669.5,668.89,1.36]
[1752109935610,2.22986626,669.44,668.89,1.36]
[1752109936006,2.22986626,669.41,668.89,1.36]
[1752109936807,0.26003624,669.33,668.89,1.36]
[1752109945918,2.4899025,669.33,668.89,1.36]
[1752109946114,0.26003624,669.33,668.89,1.36]
[1752109956027,2.22986626,669.12,668.89,1.36]
[1752109956227,2.22986626,669.3,668.89,1.36]
[1752109956427,2.22986626,669.31,668.89,1.36]
[1752109956929,2.22986626,669.26,668.89,1.36]
[1752109957227,2.22986626,669.23,668.89,1.36]
[1752109957523,2.22986626,669.24,668.89,1.36]
[1752109958328,2.22986626,669.25,668.89,1.36]
[1752109959324,2.22986626,669.27,668.89,1.36]
[1752109959925,2.22986626,669.23,668.89,1.36]
[1752109960225,2.22986626,669.06,668.89,1.36]
[1752109960429,2.22986626,669.1,668.89,1.36]
[1752109961328,2.22986626,669.13,668.89,1.36]
[1752109961832,2.22986626,669.11,668.89,1.36]
[1752109962432,2.22986626,669.14,668.89,1.36]
[1752109962832,2.22986626,669.13,668.89,1.36]
[1752109963433,2.22986626,669.16,668.89,1.36]
[1752109964234,2.22986626,669.15,668.89,1.36]
[1752109964434,2.22986626,669.17,668.89,1.36]
[1752109964734,2.22986626,669.11,668.89,1.36]
[1752109965434,2.22986626,669.13,668.89,1.36]
[1752109966130,2.22986626,669.12,668.89,1.36]
[1752109966335,2.22986626,669.14,668.89,1.36]
[1752109967334,2.22986626,669.15,668.89,1.36]
[1752109967734,2.22986626,669.18,668.89,1.36]
[1752109968431,0.26003624,669.33,668.89,1.36]
[1752109968432,2.22986626,669.19,668.89,1.36]
[1752109968636,2.22986626,669.2,668.89,1.36]
[1752109969336,2.22986626,669.21,668.89,1.36]
[1752109969931,2.22986626,669.2,668.89,1.36]
[1752109970434,2.22986626,669.22,668.89,1.36]
[1752109970734,2.22986626,669.25,668.89,1.36]
[1752109971335,2.22986626,669.26,668.89,1.36]
[1752109972338,2.22986626,669.29,668.35,0.26010621]
[1752109972938,2.22986626,669.3,668.35,0.26010621]
[1752109973438,2.22986626,669.31,668.35,0.26010621]
[1752109974738,0.26003624,669.33,668.35,0.26010621]
[1752109975134,0.26003624,669.33,668.36,1.716]
[1752109983244,2.4899025,669.33,668.36,1.716]
[1752109983445,0.26003624,669.33,668.36,1.716]
[1752109986051,2.4899025,669.33,668.36,1.716]
[1752109987753,2.22986626,669.32,668.36,1.716]
[1752109987952,2.4899025,669.33,668.36,1.716]
[1752109988255,2.22986626,669.32,668.36,1.716]
[1752109989655,2.22986626,669.31,668.36,1.716]
[1752109990154,2.22986626,669.32,668.36,1.716]
[1752109990355,2.22986626,669.31,668.36,1.716]
[1752109991357,2.22986626,669.3,668.36,1.716]
[1752109993358,2.22986626,669.32,668.36,1.716]
[1752109993758,2.22986626,669.31,668.36,1.716]
[1752109995358,2.22986626,669.3,668.36,1.716]
[1752109996254,2.22986626,669.31,668.36,1.716]
[1752109996459,2.22986626,669.3,668.36,1.716]
[1752109996659,2.22986626,669.28,668.36,1.716]
[1752109996858,2.22986626,669.27,668.36,1.716]
[1752109997557,2.22986626,669.25,668.36,1.716]
[1752109999063,2.22986626,669.24,668.36,1.716]
[1752109999360,2.22986626,669.26,668.36,1.716]
[1752109999659,2.22986626,669.3,668.36,1.716]
[1752110000365,2.22986626,669.29,668.36,1.716]
[1752110000864,2.22986626,669.28,668.36,1.716]
[1752110001465,2.22986626,669.27,668.36,1.716]
[1752110002362,2.22986626,669.26,668.36,1.716]
[1752110003469,2.22986626,669.25,668.36,1.716]
[1752110004269,2.22986626,669.24,668.36,1.716]
[1752110005265,2.22986626,669.22,668.36,1.716]
[1752110006171,2.22986626,669.23,668.36,1.716]
[1752110006371,2.22986626,669.22,668.36,1.716]
[1752110007071,2.22986626,669.25,668.36,1.716]
[1752110007472,2.22986626,669.23,668.36,1.716]
[1752110008472,2.22986626,669.21,668.36,1.716]
[1752110008669,2.22986626,669.19,668.36,1.716]
[1752110009474,3.61819245,669.33,668.36,1.716]
[1752110009475,2.22986626,669.17,668.36,1.716]
[1752110010272,2.22986626,669.15,668.36,1.716]
[1752110011375,2.22986626,669.12,668.36,1.716]
[1752110011571,2.22986626,669.13,668.36,1.716]
[1752110013272,2.22986626,669.11,668.36,1.716]
[1752110013573,2.22986626,669.12,668.36,1.716]
[1752110014475,2.22986626,669.11,668.36,1.716]
[1752110015273,2.22986626,669.1,668.36,1.716]
[1752110016177,2.22986626,669.07,668.35,1.93504029]
[1752110016374,2.22986626,669.06,668.37,1.67493408]
[1752110018278,2.22986626,669.05,668.38,1.67493408]
[1752110019476,2.22986626,669.04,668.39,3.20793408]
[1752110020181,2.22986626,669.05,668.39,1.533]
[1752110022381,2.22986626,669.04,668.39,3.20793408]
[1752110023385,2.22986626,669.03,668.4,1.67493408]
[1752110028584,2.22986626,669.03,668.39,1.533]
[1752110028585,2.22986626,669.04,668.39,3.20793408]
[1752110030189,2.22986626,669.03,668.39,3.20793408]
[1752110031588,2.22986626,669.02,668.4,1.67493408]
[1752110032684,2.22986626,669.05,668.39,1.533]
[1752110032889,2.22986626,669.04,668.39,3.20793408]
[1752110034990,2.22986626,669.05,668.39,1.533]
[1752110038491,2.22986626,669.04,668.39,3.20793408]
[1752110042494,2.22986626,669.02,668.41,1.67493408]
[1752110043296,2.22986626,669.02,668.4,1.67493408]
[1752110045003,2.22986626,669.03,668.39,3.20793408]
[1752110045401,2.22986626,669.04,668.39,3.20793408]
[1752110045903,2.22986626,669.04,668.39,1.533]
[1752110046099,2.22986626,669.05,668.39,1.533]
[1752110046504,2.22986626,669.05,668.39,3.20793408]
[1752110046905,2.22986626,669.06,668.39,3.20793408]
[1752110047406,2.22986626,669.05,668.39,3.20793408]
[1752110049306,2.22986626,669.05,668.4,1.67493408]
[1752110050406,2.22986626,669.06,668.39,3.20793408]
[1752110051306,3.35815621,669.21,668.39,3.20793408]
[1752110051307,2.22986626,669.05,668.39,3.20793408]
[1752110052407,2.22986626,669.04,668.41,1.67493408]
[1752110053105,2.22986626,669.03,668.41,1.67493408]
[1752110054006,0.26003624,669.33,668.4,1.67493408]
[1752110054007,2.22986626,669.04,668.4,1.67493408]
[1752110054404,2.22986626,669.04,668.41,1.67493408]
[1752110054606,2.22986626,669.03,668.42,1.67493408]
[1752110054803,2.22986626,669.03,668.41,1.67493408]
[1752110056407,2.22986626,669.03,668.42,1.67493408]
[1752110057011,2.22986626,669.02,668.43,1.67493408]
[1752110057206,2.22986626,669.01,668.43,1.67493408]
[1752110057708,2.22986626,669.0,668.44,1.67493408]
[1752110058207,2.22986626,669.0,668.44,1.68089523]
[1752110058713,2.22986626,669.0,668.45,1.95]
[1752110059409,2.22986626,669.0,668.45,3.63089523]
[1752110059615,2.22986626,669.0,668.45,1.95]
[1752110059915,2.22986626,669.02,668.45,1.95]
[1752110062610,2.22986626,669.1,668.45,1.95]
[1752110062809,2.22986626,669.13,668.45,1.95]
[1752110063211,2.22986626,669.14,668.45,1.95]
[1752110064314,2.22986626,669.16,668.47,1.68093123]
[1752110065815,2.22986626,669.09,668.52,1.68093123]
[1752110067115,2.22986626,669.2,668.45,1.95]
[1752110072225,2.22986626,669.21,668.45,1.95]
[1752110077031,2.22986626,669.14,668.47,1.68093123]
[1752110078130,0.26003624,669.33,668.45,1.95]
[1752110078131,2.22986626,669.13,668.48,1.68093123]
[1752110078831,2.22986626,669.15,668.46,1.68093123]
[1752110079433,2.22986626,669.12,668.49,1.68093123]
[1752110079733,2.22986626,669.12,668.48,1.68093123]
[1752110082033,2.22986626,669.11,668.49,1.68093123]
[1752110083332,2.22986626,669.11,668.49,1.67867111]
[1752110085129,2.22986626,669.13,668.48,1.67867111]
[1752110088336,2.22986626,669.12,668.48,1.67867111]
[1752110088733,2.22986626,669.11,668.49,1.67867111]
[1752110089341,2.22986626,669.18,668.45,1.95]
[1752110095045,2.22986626,669.17,668.45,1.95]
[1752110097144,2.22986626,669.16,668.45,1.95]
[1752110097643,2.22986626,669.17,668.45,1.95]
[1752110097947,2.22986626,669.17,668.43,1.67867111]
[1752110098545,2.22986626,669.16,668.43,1.67867111]
[1752110099244,2.22986626,669.11,668.47,1.67867111]
[1752110099847,2.22986626,669.11,668.48,1.67867111]
[1752110100046,2.22986626,669.11,668.47,1.67867111]
[1752110101651,2.22986626,669.11,668.48,1.611]
[1752110102151,2.22986626,669.21,668.48,1.611]
[1752110102346,2.22986626,669.01,668.48,1.611]
[1752110102548,2.22986626,668.99,668.48,1.611]
[1752110103149,2.22986626,668.98,668.48,1.611]
[1752110104149,2.22986626,668.96,668.48,1.611]
[1752110104352,2.22986626,668.97,668.48,1.611]
[1752110104853,2.22986626,668.98,668.48,1.611]
[1752110106451,2.22986626,668.99,668.48,1.611]
[1752110107350,0.26003624,669.33,668.48,1.611]
[1752110107351,2.22986626,669.0,668.48,1.611]
[1752110108257,2.22986626,669.01,668.48,1.611]
[1752110109257,2.22986626,669.02,668.48,1.611]
[1752110110160,2.22986626,669.04,668.48,1.611]
[1752110111257,2.22986626,669.05,668.48,1.611]
[1752110111661,2.22986626,669.04,668.48,1.611]
[1752110112162,2.22986626,669.01,668.48,1.611]
[1752110113159,2.22986626,669.0,668.48,1.611]
[1752110113963,2.22986626,668.99,668.48,1.611]
[1752110114861,2.22986626,668.98,668.48,1.611]
[1752110115363,2.22986626,668.97,668.48,1.611]
[1752110117164,2.22986626,668.98,668.48,1.611]
[1752110118962,2.22986626,668.99,668.48,1.611]
[1752110121267,2.22986626,669.0,668.48,1.611]
[1752110122171,2.22986626,669.01,668.48,1.611]
[1752110122766,2.22986626,669.02,668.48,1.611]
[1752110126173,2.22986626,669.03,668.48,1.611]
[1752110129173,2.22986626,669.02,668.48,1.611]
[1752110130179,2.22986626,669.08,668.48,1.611]
[1752110131776,2.22986626,669.09,668.48,1.611]
[1752110135178,2.22986626,669.08,668.48,1.611]
[1752110135384,2.22986626,669.09,668.48,1.611]
[1752110136883,0.26020053,668.94,668.48,1.611]
[1752110149189,2.49006679,668.94,668.48,1.611]
[1752110150188,2.22986626,668.93,668.48,1.611]
[1752110151289,2.22986626,668.92,668.48,1.611]
[1752110151890,2.22986626,668.91,668.48,1.611]
[1752110152089,2.22986626,668.9,668.48,1.611]
[1752110152292,2.22986626,668.89,668.48,1.611]
[1752110153193,2.22986626,668.87,668.48,1.611]
[1752110153993,2.22986626,668.88,668.48,1.611]
[1752110154189,2.22986626,668.86,668.48,1.611]
[1752110154896,2.22986626,668.86,668.21,0.26019859]
[1752110154897,2.22986626,668.87,668.21,0.26019859]
[1752110155197,2.22986626,668.86,668.21,0.26019859]
[1752110155393,2.22986626,668.85,668.21,0.26019859]
[1752110156194,2.22986626,668.84,668.21,1.9388697]
[1752110157195,2.22986626,668.83,668.22,1.67867111]
[1752110157400,2.22986626,668.83,668.22,3.16467111]
[1752110158195,2.22986626,668.81,668.24,1.67867111]
[1752110158896,2.22986626,668.83,668.22,3.16467111]
[1752110159102,2.22986626,668.81,668.22,3.16467111]
[1752110159396,2.22986626,668.81,668.25,1.67867111]
[1752110161304,2.22986626,668.76,668.29,1.67867111]
[1752110162206,2.22986626,668.76,668.3,1.67867111]
[1752110164005,3.35815621,668.88,668.22,1.486]
[1752110164006,2.22986626,668.9,668.22,1.486]
[1752110165307,0.26020053,668.94,668.24,1.67867111]
[1752110165607,0.26020053,668.94,668.23,1.67867111]
[1752110167406,0.26020053,668.94,668.22,3.16467111]
[1752110170305,0.26020053,668.94,668.22,1.486]
[1752110173912,2.22986626,668.92,668.28,1.68094002]
[1752110174111,2.22986626,668.93,668.28,1.68094002]
[1752110174308,2.22986626,668.93,668.27,1.68094002]
[1752110175109,2.22986626,668.93,668.28,1.68094002]
[1752110175313,2.22986626,668.93,668.27,1.68094002]
[1752110176110,2.22986626,668.88,668.31,1.68094002]
[1752110176614,2.22986626,668.89,668.31,1.68094002]
[1752110177113,2.22986626,668.88,668.31,1.68094002]
[1752110178410,2.22986626,668.89,668.31,1.68094002]
[1752110179619,2.22986626,668.89,668.22,1.486]
[1752110179620,2.22986626,668.92,668.28,1.68094002]
[1752110180717,2.22986626,668.92,668.29,1.68094002]
[1752110181418,2.22986626,668.92,668.28,1.68094002]
[1752110181623,0.26020053,668.94,668.28,1.68094002]
[1752110181624,2.22986626,668.93,668.28,1.68094002]
[1752110181923,2.22986626,668.91,668.29,1.68094002]
[1752110182322,2.22986626,668.92,668.29,1.68094002]
[1752110182819,2.22986626,668.91,668.29,1.68094002]
[1752110183224,0.26020053,668.94,668.29,1.68094002]
[1752110183225,2.22986626,668.92,668.29,1.68094002]
[1752110183519,2.22986626,668.91,668.29,1.67999935]
[1752110183922,2.22986626,668.92,668.29,1.67999935]
[1752110184119,2.22986626,668.91,668.29,1.67999935]
[1752110184419,2.22986626,668.92,668.29,1.67999935]
[1752110186723,2.22986626,668.92,668.28,1.67999935]
[1752110187525,2.22986626,668.91,668.29,1.67999935]
[1752110187726,2.22986626,668.91,668.22,1.486]
[1752110187727,2.22986626,668.91,668.28,1.67999935]
[1752110188529,2.22986626,668.91,668.29,1.67999935]
[1752110188825,2.22986626,668.91,668.28,1.67999935]
[1752110189728,2.22986626,668.91,668.21,0.26019859]
[1752110189729,2.22986626,668.91,668.29,1.67999935]
[1752110190430,2.22986626,668.9,668.29,1.67999935]
[1752110190730,2.22986626,668.91,668.29,1.67999935]
[1752110190929,0.26020053,668.94,668.21,0.26019859]
[1752110192734,0.26020053,668.94,668.22,1.21]
[1752110194733,2.22986626,669.04,668.22,1.21]
[1752110199335,0.26022486,668.89,668.22,1.47022486]
[1752110199839,0.26022486,668.89,668.25,1.67979878]
[1752110200741,0.26022486,668.89,668.22,3.15002364]
[1752110201742,0.26022486,668.89,668.22,1.47022486]
[1752110202639,0.26022486,668.89,668.22,3.15002364]
[1752110204841,0.26022486,668.89,668.23,1.67979878]
[1752110205646,0.26022486,668.89,668.22,3.15002364]
[1752110207145,0.26022486,668.89,668.23,1.67979878]
[1752110207844,0.26022486,668.89,668.22,3.15002364]
[1752110208046,0.26022486,668.89,668.23,1.67979878]
[1752110209248,0.26022486,668.89,668.24,1.67979878]
[1752110210547,2.22986626,668.88,668.29,1.67979878]
[1752110211454,2.22986626,668.87,668.29,1.67979878]
[1752110211652,2.22986626,668.88,668.29,1.67979878]
[1752110211948,2.22986626,668.87,668.29,1.67979878]
[1752110213553,2.22986626,668.86,668.3,1.67979878]
[1752110214455,0.26022486,668.89,668.25,1.67979878]
[1752110214753,0.26022486,668.89,668.24,1.67979878]
[1752110214951,2.22986626,668.86,668.22,0.26022486]
[1752110215253,2.22986626,668.86,668.23,1.832]
[1752110215553,2.22986626,668.87,668.23,1.832]
[1752110218750,2.22986626,668.85,668.23,1.832]
[1752110219956,2.22986626,668.83,668.23,1.832]
[1752110221655,2.22986626,668.84,668.23,1.832]
[1752110221855,2.22986626,668.83,668.23,1.832]
[1752110224456,2.22986626,668.78,668.23,1.832]
[1752110225460,0.26022486,668.89,668.23,1.832]
[1752110225461,2.22986626,668.79,668.23,1.832]
[1752110228462,2.22986626,668.77,668.23,1.832]
[1752110229257,2.22986626,668.78,668.23,1.832]
[1752110230264,2.22986626,668.8,668.23,1.832]
[1752110233161,2.22986626,668.81,668.23,1.832]
[1752110236364,2.22986626,668.8,668.23,1.832]
[1752110236666,2.22986626,668.81,668.23,1.832]
[1752110237567,2.22986626,668.85,668.23,1.832]
[1752110237869,2.22986626,668.86,668.23,1.832]
[1752110238469,2.49009112,668.89,668.23,1.832]
[1752110239170,0.26022486,668.89,668.23,1.832]
[1752110240164,0.26022486,668.89,668.23,3.51108227]
[1752110242471,0.26022486,668.89,668.25,1.67908227]
[1752110247578,2.22986626,668.87,668.29,1.67908227]
[1752110247875,2.22986626,668.86,668.3,1.67908227]
[1752110248772,2.22986626,668.86,668.31,1.274]
[1752110253884,0.26022486,668.89,668.31,1.274]
[1752110279810,0.26022486,668.89,668.22,0.26022486]
[1752110282311,0.26022486,668.89,668.27,1.67908227]
[1752110282611,0.26022486,668.89,668.25,1.67908227]
[1752110284311,0.26022486,668.89,668.24,1.67908227]
[1752110287213,0.26022486,668.89,668.25,1.67908227]
[1752110287714,0.26022486,668.89,668.22,0.26022486]
[1752110287915,0.26022486,668.89,668.24,1.67993412]
[1752110289111,0.26022486,668.89,668.25,1.67993412]
[1752110289412,0.26022486,668.89,668.24,1.67993412]
[1752110290616,0.26022486,668.89,668.25,1.67993412]
[1752110292317,0.26022486,668.89,668.26,1.67993412]
[1752110293617,0.26022486,668.89,668.27,1.67993412]
[1752110294317,0.26022486,668.89,668.28,1.67993412]
[1752110295114,2.49009112,668.89,668.3,1.67993412]
[1752110297518,2.22986626,668.88,668.31,1.67993412]
[1752110298217,2.22986626,668.87,668.32,1.67993412]
[1752110298920,0.26022486,668.89,668.28,1.67993412]
[1752110299320,0.26022486,668.89,668.29,1.67993412]
[1752110300121,0.26022486,668.89,668.28,1.67993412]
[1752110301721,0.26022486,668.89,668.27,1.67993412]
[1752110302121,0.26022486,668.89,668.28,1.67993412]
[1752110302920,0.26022486,668.89,668.27,1.67993412]
[1752110305024,0.26022486,668.89,668.26,1.67993412]
[1752110305824,0.26022486,668.89,668.27,1.67993412]
[1752110308625,0.26022486,668.89,668.28,1.67993412]
[1752110309927,0.26022486,668.89,668.29,1.67993412]
[1752110310429,0.26022486,668.89,668.3,1.67993412]
[1752110310629,0.26022486,668.89,668.29,1.67993412]
[1752110312728,0.26022486,668.89,668.22,0.26022486]
[1752110312729,0.26022486,668.89,668.3,1.67993412]
[1752110313435,2.49009112,668.89,668.31,1.67993412]
[1752110314839,2.22986626,668.87,668.32,1.67993412]
[1752110316337,0.26022486,668.89,668.29,1.67993412]
[1752110318339,0.26022486,668.89,668.3,1.67993412]
[1752110319439,0.26022486,668.89,668.29,1.67993412]
[1752110319636,0.26022486,668.89,668.28,1.67993412]
[1752110320540,2.49009112,668.89,668.28,1.67993412]
[1752110323239,0.26022486,668.89,668.29,1.67993412]
[1752110324247,0.26022486,668.89,668.31,1.67993412]
[1752110326142,0.26022486,668.89,668.33,1.67993412]
[1752110327447,0.26022486,668.89,668.34,1.344]
[1752110329346,0.26022486,668.89,668.34,3.02393412]
[1752110329744,2.49009112,668.89,668.34,3.02393412]
[1752110330149,0.26022486,668.89,668.34,3.02393412]
[1752110330646,2.22986626,668.9,668.34,3.02393412]
[1752110330847,2.22986626,669.13,668.34,1.344]
[1752110331143,0.26020345,669.01,668.34,1.344]
[1752110351661,0.26020345,669.01,668.34,3.02393412]
[1752110352559,0.26020345,669.01,668.37,1.67993412]
[1752110355866,0.26020345,669.01,668.34,1.344]
[1752110364467,0.26020345,669.01,668.36,1.67993412]
[1752110364966,0.26020345,669.01,668.36,1.67863172]
[1752110366469,0.26020345,669.01,668.34,1.344]
[1752110368474,0.26020345,669.01,668.34,3.02263172]
[1752110370272,0.26020345,669.01,668.34,1.344]
[1752110371078,0.26020345,669.01,668.34,3.02207295]
[1752110374386,0.26020345,669.01,668.35,1.67807295]
[1752110376287,0.26020345,669.01,668.38,1.67807295]
[1752110376783,0.26020345,669.01,668.37,1.67807295]
[1752110380293,0.26020345,669.01,668.38,1.257]
[1752110381189,0.26020345,669.01,668.38,2.93507295]
[1752110381394,0.26020345,669.01,668.39,1.67807295]
[1752110383294,0.26020345,669.01,668.4,1.67807295]
[1752110386899,0.26020345,669.01,668.42,1.67807295]
[1752110387194,0.26020345,669.01,668.43,1.67807295]
[1752110388394,5.59692702,669.7,668.38,1.257]
[1752110388395,2.22986626,669.04,668.45,1.67807295]
[1752110390697,2.22986626,669.02,668.47,1.67807295]
[1752110392202,2.22986626,669.02,668.46,1.67807295]
[1752110392498,2.22986626,669.02,668.47,1.67807295]
[1752110393500,2.22986626,669.02,668.46,1.67807295]
[1752110393699,2.22986626,669.05,668.44,1.67807295]
[1752110394604,2.22986626,669.04,668.44,1.67807295]
[1752110394801,2.22986626,669.05,668.44,1.67807295]
[1752110396305,2.22986626,669.04,668.44,1.67807295]
[1752110396601,2.22986626,669.05,668.45,1.67807295]
[1752110396799,2.22986626,669.42,668.38,1.257]
[1752110397002,2.22986626,669.43,668.38,1.257]
[1752110397202,0.26011982,669.17,668.38,1.257]
[1752110399405,0.26011982,669.17,668.21,1.67891559]
[1752110399706,0.26011982,669.17,668.36,0.26010038]
[1752110401808,0.26011982,669.17,668.37,1.53219352]
[1752110402007,0.26011982,669.17,668.38,1.53219352]
[1752110402306,0.26011982,669.17,668.39,1.53219352]
[1752110402512,0.26011982,669.17,668.4,1.53219352]
[1752110402708,0.26011982,669.17,668.41,1.53219352]
[1752110403008,0.26011982,669.17,668.42,1.53219352]
[1752110403311,0.26011982,669.17,668.43,1.53219352]
[1752110403511,0.26011982,669.17,668.42,1.999]
[1752110403512,0.26011982,669.17,668.44,1.53219352]
[1752110403711,0.26011982,669.17,668.45,1.53219352]
[1752110404009,0.26011982,669.17,668.46,1.53219352]
[1752110404314,0.26011982,669.17,668.47,1.53219352]
[1752110404513,0.26011982,669.17,668.48,1.53219352]
[1752110404708,0.26011982,669.17,668.49,1.53219352]
[1752110404913,0.26011982,669.17,668.5,1.53219352]
[1752110405210,0.26011982,669.17,668.51,1.53219352]
[1752110405417,0.26011982,669.17,668.42,1.999]
[1752110405714,0.26011982,669.17,668.43,1.53224935]
[1752110405915,0.26011982,669.17,668.44,1.53224935]
[1752110406115,0.26011982,669.17,668.45,1.53224935]
[1752110406312,0.26011982,669.17,668.46,1.53224935]
[1752110406614,0.26011982,669.17,668.47,1.53224935]
[1752110406815,0.26011982,669.17,668.48,1.53224935]
[1752110407011,0.26011982,669.17,668.49,1.53224935]
[1752110407214,0.26011982,669.17,668.5,1.53224935]
[1752110407514,0.26011982,669.17,668.51,1.53224935]
[1752110407715,0.26011982,669.17,668.52,1.53224935]
[1752110407916,0.26011982,669.17,668.53,1.53224935]
[1752110408116,0.26011982,669.17,668.54,1.53224935]
[1752110408311,0.26011982,669.17,668.55,1.53224935]
[1752110408515,0.26011982,669.17,668.56,1.53224935]
[1752110408716,0.26011982,669.17,668.57,1.53224935]
[1752110408916,0.26011982,669.17,668.58,1.53224935]
[1752110409112,0.26011982,669.17,668.59,1.53224935]
[1752110409413,0.26011982,669.17,668.6,1.53224935]
[1752110409613,0.26011982,669.17,668.61,1.53224935]
[1752110409812,0.26011982,669.17,668.62,1.53224935]
[1752110410115,0.26011982,669.17,668.63,1.53224935]
[1752110410314,0.26011982,669.17,668.64,1.53224935]
[1752110410513,0.26011982,669.17,668.42,1.999]
[1752110410514,0.26011982,669.17,668.65,1.53224935]
[1752110410713,0.26011982,669.17,668.66,1.53224935]
[1752110410917,0.26011982,669.17,668.67,1.53224935]
[1752110411214,0.26011982,669.17,668.68,1.53224935]
[1752110411414,0.26011982,669.17,668.69,1.53224935]
[1752110411718,0.26011982,669.17,668.7,1.53224935]
[1752110411915,0.26011982,669.17,668.71,1.53224935]
[1752110412117,0.26011982,669.17,668.72,1.53224935]
[1752110412317,0.26011982,669.17,668.73,1.53224935]
[1752110412514,0.26011982,669.17,668.74,1.53224935]
[1752110412713,0.26011982,669.17,668.75,1.53224935]
[1752110412918,0.26011982,669.17,668.42,1.999]
[1752110413118,0.26011982,669.17,668.43,1.53276678]
[1752110413415,0.26011982,669.17,668.44,1.53276678]
[1752110413618,0.26011982,669.17,668.45,1.53276678]
[1752110413917,0.26011982,669.17,668.46,1.53276678]
[1752110414118,0.26011982,669.17,668.47,1.53276678]
[1752110414318,0.26011982,669.17,668.48,1.53276678]
[1752110414517,0.26011982,669.17,668.49,1.53276678]
[1752110414815,0.26011982,669.17,668.5,1.53276678]
[1752110415018,0.26011982,669.17,668.51,1.53276678]
[1752110415314,0.26011982,669.17,668.52,1.53276678]
[1752110415513,0.26011982,669.17,668.53,1.53276678]
[1752110415713,0.26011982,669.17,668.54,1.53276678]
[1752110415915,0.26011982,669.17,668.55,1.53276678]
[1752110416219,0.26011982,669.17,668.56,1.53276678]
[1752110416418,0.26011982,669.17,668.57,1.53276678]
[1752110416617,0.26011982,669.17,668.58,1.53276678]
[1752110416816,0.26011982,669.17,668.59,1.53276678]
[1752110417015,0.26011982,669.17,668.6,1.53276678]
[1752110417216,0.26011982,669.17,668.61,1.53276678]
[1752110417418,0.26011982,669.17,668.62,1.53276678]
[1752110417616,0.26011982,669.17,668.63,1.53276678]
[1752110417919,0.26011982,669.17,668.64,1.53276678]
[1752110418117,0.26011982,669.17,668.65,1.53276678]
[1752110418319,0.26011982,669.17,668.42,1.999]
[1752110418517,0.26011982,669.17,668.43,1.5331349]
[1752110418820,0.26011982,669.17,668.44,1.5331349]
[1752110419019,0.26011982,669.17,668.45,1.5331349]
[1752110419219,0.26011982,669.17,668.46,1.5331349]
[1752110419418,0.26011982,669.17,668.47,1.5331349]
[1752110419620,0.26011982,669.17,668.48,1.5331349]
[1752110419916,0.26011982,669.17,668.49,1.5331349]
[1752110420119,0.26011982,669.17,668.42,1.999]
[1752110420120,0.26011982,669.17,668.5,1.5331349]
[1752110420420,0.26011982,669.17,668.51,1.5331349]
[1752110420618,0.26011982,669.17,668.52,1.5331349]
[1752110420822,0.26011982,669.17,668.53,1.5331349]
[1752110421123,0.26011982,669.17,668.54,1.5331349]
[1752110421322,0.26011982,669.17,668.55,1.5331349]
[1752110421618,0.26011982,669.17,668.56,1.5331349]
[1752110421819,0.26011982,669.17,668.57,1.5331349]
[1752110422017,0.26011982,669.17,668.58,1.5331349]
[1752110422218,0.26011982,669.17,668.59,1.5331349]
[1752110422419,0.26011982,669.17,668.6,1.53265916]
[1752110422621,0.26011982,669.17,668.42,1.999]
[1752110422921,0.26011982,669.17,668.43,1.53266561]
[1752110423115,0.26011982,669.17,668.44,1.53266561]
[1752110423317,0.26011982,669.17,668.45,1.53266561]
[1752110423520,0.26011982,669.17,668.46,1.53266561]
[1752110423816,0.26011982,669.17,668.47,1.53266561]
[1752110424017,0.26011982,669.17,668.48,1.53266561]
[1752110424221,0.26011982,669.17,668.42,1.999]
[1752110424524,0.26011982,669.17,668.43,1.53219506]
[1752110424724,0.26011982,669.17,668.44,1.53219506]
[1752110424921,0.26011982,669.17,668.45,1.53219506]
[1752110425125,0.26011982,669.17,668.46,1.53219506]
[1752110425423,0.26011982,669.17,668.47,1.53219506]
[1752110425723,0.26011982,669.17,668.42,1.999]
[1752110426021,0.26011982,669.17,668.43,1.53173042]
[1752110426225,0.26011982,669.17,668.42,1.999]
[1752110426226,0.26011982,669.17,668.44,1.53173042]
[1752110426527,0.26011982,669.17,668.45,1.53173042]
[1752110426722,0.26011982,669.17,668.46,1.53173042]
[1752110427022,0.26011982,669.17,668.42,1.999]
[1752110427325,0.26011982,669.17,668.43,1.5313299]
[1752110427521,0.26011982,669.17,668.44,1.5313299]
[1752110427723,0.26011982,669.17,668.45,1.5313299]
[1752110427923,0.26011982,669.17,668.42,1.999]